[Event "11th Festival Palmanova-A 2022"]
[Site "Strassoldo"]
[Date "2022.12.09"]
[Round "3.4"]
[White "Lumachi, Gabriele"]
[Black "Casadio, Niccolo`"]
[Result "1/2-1/2"]
[ECO "D35"]
[WhiteElo "2394"]
[BlackElo "2095"]
[Annotator "TA"]
[PlyCount "138"]
[EventDate "2022.12.08"]
[EventType "swiss"]
[EventCountry "ITA"]
[SourceTitle "playchess.com"]
[Source "ChessBase"]
[SourceQuality "1"]
[TimeControl "5400+30"]

{[%evp 13,138,21,23,12,29,14,27,18,15,27,22,0,1,0,28,17,19,12,35,19,41,32,39,0,9,0,10,10,25,19,51,50,43,43,51,41,44,45,32,0,0,0,0,0,0,0,0,0,0,0,319,314,307,300,323,312,308,307,277,210,384,372,1230,1304,1329,1277,1531,1431,1357,1557,1690,1567,1930,1796,1940,1893,1676,1470,1228,425,562,343,554,540,482,425,12828,12805,12832,12832,12833,12833,12832,24,44,0,0,0,0,0,0,0,0,0,0,0,0,0,0,0,0,0,0,0,0,0,0,0,0,0,0,0,0,0,0,0,0]} 1. d4 {[%emt 0:00:05]} e6 {[%emt 0:00:04]} 2. c4 {[%emt 0:00:08]} Nf6 {[%emt 0:00:07]} 3. Nc3 {[%emt 0:00:05]} d5 {[%emt 0:00:05]} 4. cxd5 {[%emt 0:00:05]} exd5 {[%emt 0:00:04]} 5. Bg5 {[%emt 0:00:09]} Be7 {[%emt 0:00:07]} 6. e3 {[%emt 0:00:16]} c6 {[%emt 0:00:12]} 7. Bd3 {[%emt 0:00:07]} Nbd7 {[%emt 0:00:09]} 8. h3 {[%emt 0:00:30] D35: Queen's Gambit Declined: Exchange Variation.} Nb6 {[%emt 0:03:00]} 9. Nge2 {[%emt 0:07:30]} h6 {[%emt 0:01:33]} 10. Bh4 {[%emt 0:08:07] White has an edge.} Nh5 {[%emt 0:04:04]} 11. Bxe7 {[%emt 0:00:08]} Qxe7 {[%emt 0:00:05] [#]} 12. Qd2 $146 {[%emt 0:03:58]} ({Predecessor:} 12. O-O O-O 13. Rb1 a5 14. Qb3 Qd8 15. Na4 Nxa4 16. Qxa4 Qg5 17. Kh2 Bf5 18. Bxf5 Qxf5 {½-½ (34) Agdestein,S (2603)-Andersen,M (2525) Helsingor 2016}) 12... O-O {[%emt 0:02:56]} 13. O-O {[%emt 0:08:28]} Be6 {[%emt 0:00:44]} 14. Rae1 {[%emt 0:00:21]} Rad8 {[%emt 0:00:22]} (14... Qh4 {keeps more tension.} 15. Kh2 Rfe8 16. Ng1 Qe7) 15. b3 {[%emt 0:00:23]} f5 {[%emt 0:13:03]} 16. Bb1 {[%emt 0:11:58]} (16. Nf4 {simplifies} Nxf4 17. exf4 Nc8 18. Re5) 16... Qg5 {[%emt 0:05:14]} 17. Kh2 {[%emt 0:04:14]} Nc8 {[%emt 0:03:44]} 18. f4 {[%emt 0:08:07]} (18. Na4 {with more complications.} b6 19. Nb2 Nd6 20. Nd3) 18... Qe7 {[%emt 0:00:33]} 19. Nc1 {[%emt 0:01:59][%cal Be2c1,Bc1d3,Bd3e5][%mdl 32]} (19. Ng1 {keeps more tension.} g5 20. Nf3 g4 21. Ne5) 19... Nf6 {[%emt 0:02:57]} 20. Nd3 {[%emt 0:00:44]} Nd7 {[%emt 0:04:56]} (20... Ne4 {seems wilder.} 21. Qb2 Kh7 22. Ne5 Rg8) 21. Ne5 {[%emt 0:02:04]} Qe8 {[%emt 0:00:35] Against Ng6} (21... Kh7 {feels hotter.} 22. Na4 Nd6 23. Qb4 Rg8) 22. Qf2 {[%emt 0:03:09]} Nd6 {[%emt 0:01:28]} 23. Qh4 {[%emt 0:00:33]} (23. g4 {is more complex.} Ne4 24. Bxe4 dxe4 25. gxf5 Bxf5 26. Rg1) 23... Nxe5 {[%emt 0:00:46]} 24. fxe5 {[%emt 0:00:11]} Ne4 {[%emt 0:00:09]} 25. Bxe4 {[%emt 0:00:18]} dxe4 {[%emt 0:00:43]} 26. g4 {[%emt 0:06:26] Against c5} fxg4 {[%emt 0:01:28]} 27. Rxf8+ {[%emt 0:11:07]} (27. Nxe4 Qg6 28. Nd6 Qc2+ 29. Kg1 gxh3 $19) 27... Qxf8 {[%emt 0:00:17]} 28. hxg4 {[%emt 0:00:47][%cal Bh3g4,Bg4g5,Bg5h6][%mdl 32]} c5 {[%emt 0:01:21]} 29. Nxe4 {[%emt 0:03:19]} cxd4 {[%emt 0:00:24]} 30. g5 {[%emt 0:00:05]} Rc8 {[%emt 0:03:55]} 31. gxh6 {[%emt 0:04:34] Strongly threatening Qg5.} Qf3 $2 {[%emt 0:02:06][%mdl 8192] [#]} (31... Rc2+ 32. Kg1 dxe3 33. Qg3) (31... Bd5 $1 $11 32. Kg1 (32. exd4 $2 Bxe4 33. Kg1 Bf5 $19) (32. h7+ $2 Kh8 $19) 32... Bxe4 33. Qxe4 dxe3 34. Qxe3 (34. Qxb7 Qf2+ 35. Kh1 Qxe1+ 36. Kg2 Rc2+ 37. Kh3 Qf1+ 38. Kg3 Qg1+ 39. Kf4 Rf2+ 40. Kxe3 Rf7+ 41. Kd3 Rxb7 42. e6 gxh6 43. Kc4 Qe3 44. b4 Qe4+ 45. Kb3 Rxb4+ 46. Kc3 Rc4+ 47. Kd2 Rc2+ 48. Kd1 Qe2#) (34. Rxe3 Rc1+ 35. Kg2 Qf1+ 36. Kg3 Qg1+ 37. Kh3 Qg5 $11) 34... Qb4) 32. Qg5 $1 $18 {[%emt 0:04:37][%csl Gh6][%cal Rg5g7]} Qh3+ {[%emt 0:11:27]} 33. Kg1 {[%emt 0:00:07][%csl Gh6][%cal Rg5g7] The board is on fire.} Qxh6 {[%emt 0:00:04]} 34. Qxh6 {[%emt 0:00:04]} ({Not} 34. exd4 Qxg5+ 35. Nxg5 Bd5 $18) 34... gxh6 {[%emt 0:00:05]} 35. exd4 {[%emt 0:00:04][%cal Od4d5][%mdl 4096] Endgame Threatens to win with d5! KRB-KRN} Kf8 {[%emt 0:00:28]} 36. Rd1 {[%emt 0:05:02]} Bd5 $2 {[%emt 0:00:49]} (36... Rc2 37. d5 Bh3) 37. Nf6 {[%emt 0:00:11]} Rd8 {[%emt 0:00:25]} (37... Be6 38. d5 Bf5) 38. Nxd5 {[%emt 0:00:14]} Rxd5 {[%emt 0:00:05] KR-KR} 39. Kf2 {[%emt 0:00:04]} Ke7 {[%emt 0:00:32]} 40. Ke3 {[%emt 0:00:05]} Rd8 {[%emt 0:00:44]} 41. Rh1 {[%emt 0:00:16]} Rh8 {[%emt 0:00:13]} 42. Rh5 {[%emt 0:00:08]} Kf7 {[%emt 0:00:24]} 43. d5 {[%emt 0:00:07]} Kg6 {[%emt 0:00:06]} 44. Rh1 {[%emt 0:00:13]} h5 {[%emt 0:00:46]} 45. Kf4 {[%emt 0:02:53]} h4 {[%emt 0:00:14]} 46. Rg1+ {[%emt 0:00:06]} (46. d6 $142 Kf7 47. Kg4 (47. Kf5 Rh5+ 48. Kf4 h3 $14)) 46... Kf7 {[%emt 0:00:06]} 47. Rc1 {[%emt 0:00:46] aiming for Kg5.} h3 {[%emt 0:00:26] [#]} 48. Kg3 $1 {[%emt 0:00:10]} h2 {[%emt 0:00:15] [#]} 49. Rh1 $1 {[%emt 0:02:59]} Rh5 {[%emt 0:00:15]} (49... Rg8+ $142 50. Kxh2 Rg5) 50. Rxh2 {[%emt 0:00:21]} Rxe5 {[%emt 0:00:05]} 51. Rh7+ {[%emt 0:00:06]} Kf6 {[%emt 0:00:19]} 52. Rxb7 {[%emt 0:00:32]} a5 {[%emt 0:00:46]} 53. d6 $2 {[%emt 0:01:18]} (53. Rb5 $18 a4 54. Kf4 (54. bxa4 Re4 $16)) 53... a4 $1 $11 {[%emt 0:01:05]} 54. bxa4 {[%emt 0:02:54]} (54. b4 $5 {[%cal Rb7h7]} Re3+ 55. Kf4 $16) 54... Rd5 {[%emt 0:00:37] The position is equal.} 55. Rb5 {[%emt 0:03:43]} Rxd6 {[%emt 0:00:17]} 56. a5 {[%emt 0:00:51]} Ke6 {[%emt 0:02:07]} 57. Kf3 {[%emt 0:00:12]} Kd7 {[%emt 0:00:18]} 58. Ke4 {[%emt 0:00:10]} Kc6 {[%emt 0:00:57]} 59. Rb6+ {[%emt 0:00:19]} Kc7 {[%emt 0:00:06]} 60. Rb2 {[%emt 0:00:04]} Ra6 {[%emt 0:00:41]} 61. Rb5 {[%emt 0:00:07]} Kc6 {[%emt 0:00:15]} 62. Rh5 {[%emt 0:00:22]} Kb7 {[%emt 0:00:13]} 63. Kd4 {[%emt 0:00:08]} Rg6 {[%emt 0:00:21]} 64. Kc3 {[%emt 0:01:46]} Ka6 {[%emt 0:00:09]} 65. Rc5 {[%emt 0:00:24]} Rg3+ {[%emt 0:00:11]} 66. Kb4 {[%emt 0:00:06]} Rg4+ {[%emt 0:00:09]} 67. Rc4 {[%emt 0:00:05]} Rxc4+ {[%emt 0:00:07]} 68. Kxc4 {[%emt 0:00:05]} Kxa5 {[%emt 0:00:08]} 69. a4 {[%emt 0:00:02]} Kxa4 {[%emt 0:41:34] Black escapes into a draw.   Weighted Error Value: White=0.31/Black=0.19 (very precise)} 1/2-1/2

[Event "11th Festival Palmanova-A 2022"]
[Site "Strassoldo"]
[Date "2022.12.09"]
[Round "3.5"]
[White "Titze, Leo"]
[Black "Urbani, Gabriel"]
[Result "1-0"]
[ECO "E04"]
[WhiteElo "2252"]
[BlackElo "2110"]
[Annotator "TA"]
[PlyCount "119"]
[EventDate "2022.12.08"]
[EventType "swiss"]
[EventCountry "ITA"]
[SourceTitle "playchess.com"]
[Source "ChessBase"]
[SourceQuality "1"]
[TimeControl "5400+30"]

{[%evp 9,119,8,28,16,37,16,11,2,10,10,22,27,11,-5,10,3,1,-19,0,0,0,0,18,-8,17,20,16,0,0,0,23,12,12,11,18,11,13,13,24,0,89,82,85,85,147,80,189,188,187,178,300,0,187,194,194,116,200,189,335,216,249,199,200,0,244,196,188,129,173,175,709,735,706,683,695,693,889,883,2039,1759,1703,1659,29973,29973,1124,29971,5506,1118,1626,1296,1286,1372,1329,1198,1638,1666,1584,1296,1690,1390,1514,1410,29967,29968,29968,29969,29974,29969,29967,29961,29975,5102]} 1. d4 {[%emt 0:00:03]} d5 {[%emt 0:00:47]} 2. c4 {[%emt 0:00:05]} e6 {[%emt 0:00:20]} 3. Nf3 {[%emt 0:00:05]} Nf6 {[%emt 0:00:26]} 4. g3 {[%emt 0:00:04]} dxc4 {[%emt 0:00:53]} 5. Bg2 {[%emt 0:01:53]} Bd7 {[%emt 0:00:41]} 6. O-O {[%emt 0:00:34][%mdl 1024] White has compensation. E04: Open Catalan: 5 Nf3.} Bc6 {[%emt 0:01:24]} 7. Bg5 {[%emt 0:07:07]} Be7 {[%emt 0:01:36] [#]} 8. Qc1 $146 {[%emt 0:00:21] The position is equal.} ({Predecessor:} 8. Qc2 b5 9. Nbd2 O-O 10. e4 a6 11. Rfe1 Bb7 12. b3 cxb3 13. Nxb3 Nc6 14. Rad1 {1-0 (29) Paragua,M (2461)-Maiti,M (2316) New York 2022}) 8... Nbd7 {[%emt 0:06:50]} 9. Nbd2 {[%emt 0:04:40][%cal Bb1d2,Bd2c4,Bc4e5][%mdl 32]} h6 {[%emt 0:04:54]} 10. Bxf6 {[%emt 0:01:00]} Nxf6 {[%emt 0:01:36]} 11. Nxc4 {[%emt 0:00:33]} O-O {[%emt 0:01:58]} 12. Rd1 {[%emt 0:10:10]} Bd5 {[%emt 0:10:57]} 13. Nce5 {[%emt 0:05:44]} c6 {[%emt 0:02:55]} 14. e3 $1 {[%emt 0:02:22]} Rc8 {[%emt 0:03:11]} 15. Nd3 {[%emt 0:01:44]} Qb6 {[%emt 0:01:44]} 16. Nc5 {[%emt 0:05:57]} Bxc5 {[%emt 0:01:38]} 17. dxc5 {[%emt 0:00:06]} Qc7 {[%emt 0:01:30]} 18. b4 {[%emt 0:02:12]} Rfd8 {[%emt 0:02:40]} 19. Qb2 {[%emt 0:01:07]} Be4 {[%emt 0:03:37]} 20. Ne5 {[%emt 0:05:35][%cal Bf3e5,Be5c4,Bc4e3][%mdl 32]} Rxd1+ {[%emt 0:03:50]} 21. Rxd1 {[%emt 0:00:02]} Rd8 {[%emt 0:00:15]} 22. Rd4 {[%emt 0:01:14]} Bxg2 {[%emt 0:01:28]} 23. Kxg2 {[%emt 0:00:07]} Rd5 {[%emt 0:01:03]} 24. Nc4 {[%emt 0:01:47]} Ne8 {[%emt 0:05:06]} (24... b6 $11) 25. e4 $16 {[%emt 0:00:48]} Rd7 {[%emt 0:12:28]} 26. Qd2 {[%emt 0:02:06] White is more active.} Nf6 {[%emt 0:01:13]} (26... Rxd4 $142 27. Qxd4 Qe7) 27. f3 {[%emt 0:05:32]} (27. Rd6 $142) 27... e5 {[%emt 0:02:59]} (27... Rxd4 $16 28. Qxd4 Ne8) 28. Rd6 $18 {[%emt 0:00:28]} Re7 {[%emt 0:01:22]} 29. Ne3 {[%emt 0:13:19][%cal Od6f6] [#] Rxf6! is the strong threat.} Rd7 {[%emt 0:02:09]} (29... Re6 $142 30. Rxe6 fxe6) 30. Nc4 {[%emt 0:02:33]} Re7 {[%emt 0:00:13]} 31. a4 {[%emt 0:03:43][%cal Ba2a4,Ba4a5][%mdl 32]} Kh7 {[%emt 0:03:34]} 32. Qd3 {[%emt 0:01:42]} ({White should play} 32. Ne3 $18 {[%cal Od6f6] Strongly threatening Rxf6!} Qc8 33. Nf5) 32... Kg8 {[%emt 0:03:50]} (32... Nd7 $16) 33. a5 {[%emt 0:01:45]} Re8 {[%emt 0:02:31]} (33... Kh7 {was worth a try.} 34. Ne3 Qc8) 34. h4 {[%emt 0:04:56]} Re7 {[%emt 0:01:05]} 35. Qd2 {[%emt 0:01:29]} Kh7 {[%emt 0:02:53]} 36. Qd3 {[%emt 0:00:10]} Kg8 $1 {[%emt 0:00:10]} 37. Qd1 {[%emt 0:00:18]} Kh7 {[%emt 0:01:15]} 38. Qa4 {[%emt 0:05:02]} (38. Ne3 $18 {[%cal Od6f6] And now Rxf6! would win.} Qc8 39. Nf5) 38... Rd7 {[%emt 0:07:09]} 39. a6 {[%emt 0:01:56] [#] aiming for axb7.} (39. Nxe5 Rxd6 40. cxd6 Qxd6 $15) 39... Rxd6 $2 {[%emt 0:00:33]} (39... Ne8) 40. cxd6 {[%emt 0:00:10][%mdl 4096] Endgame KQN-KQN} Qd7 {[%emt 0:00:10]} 41. axb7 {[%emt 0:00:18]} ({Worse is} 41. Nxe5 Qxd6 42. Nc4 (42. Nxf7 Qd2+ 43. Kg1 Qe1+ 44. Kg2 Qe2+ 45. Kg1 Qe3+ 46. Kg2 Qe2+ 47. Kg1 Qe1+ 48. Kg2 Qd2+ 49. Kg1 Qe1+ $17) 42... b5 $11) 41... Qxb7 {[%emt 0:00:09]} 42. Nxe5 {[%emt 0:00:34]} Qb6 {[%emt 0:04:13]} 43. Nxc6 {[%emt 0:04:47]} Qe3 {[%emt 0:01:25]} 44. Qc2 {[%emt 0:00:10]} (44. Nxa7 $2 {is the wrong capture.} Qe2+ 45. Kg1 Qe1+ 46. Kg2 Qe2+ 47. Kg1 Qxf3 $19) 44... Nd7 {[%emt 0:00:26]} 45. h5 {[%emt 0:02:30] Threatening mate with e5+.} g6 {[%emt 0:00:56] Prevents e5.} 46. hxg6+ {[%emt 0:00:10]} fxg6 {[%emt 0:00:12]} 47. Qa2 {[%emt 0:03:14]} Kg7 {[%emt 0:00:02]} 48. Qxa7 {[%emt 0:01:08]} (48. Qb2+ $142 Kh7 49. Ne7) 48... Qd2+ {[%emt 0:01:08]} 49. Qf2 {[%emt 0:00:02]} Qxd6 {[%emt 0:00:09]} 50. Qd4+ {[%emt 0:00:01]} Qxd4 {[%emt 0:00:08]} 51. Nxd4 {[%emt 0:00:03] KN-KN} Kf6 {[%emt 0:00:12]} 52. f4 {[%emt 0:00:20]} Nb6 {[%emt 0:00:32]} 53. Kf3 {[%emt 0:00:32]} Na4 {[%emt 0:00:29]} 54. e5+ {[%emt 0:00:34]} Ke7 {[%emt 0:00:02]} 55. Ke4 {[%emt 0:01:10]} Kd7 {[%emt 0:00:17]} 56. f5 {[%emt 0:01:39] White mates.} gxf5+ {[%emt 0:00:53]} 57. Kxf5 {[%emt 0:00:02]} Nb6 {[%emt 0:00:34]} 58. Kg6 {[%emt 0:00:45]} Nc4 {[%emt 0:00:13]} 59. Kf6 {[%emt 0:00:06]} Nb6 {[%emt 0:00:19]} 60. e6+ {[%emt 0:00:12] Weighted Error Value: White=0.30/Black=0.39} 1-0

[Event "11th Festival Palmanova-A 2022"]
[Site "Strassoldo"]
[Date "2022.12.09"]
[Round "3.6"]
[White "Liloni, Francesco Mattia"]
[Black "Ceschia, Ivano"]
[Result "1/2-1/2"]
[ECO "B23"]
[WhiteElo "1909"]
[BlackElo "2217"]
[Annotator "TA"]
[PlyCount "111"]
[EventDate "2022.12.08"]
[EventType "swiss"]
[EventCountry "ITA"]
[SourceTitle "playchess.com"]
[Source "ChessBase"]
[SourceQuality "1"]
[TimeControl "5400+30"]

{[%evp 10,111,9,18,16,11,9,8,6,8,17,17,6,10,16,0,2,0,0,0,5,2,104,19,67,81,133,124,175,91,149,100,141,141,185,124,205,93,185,197,174,191,318,278,237,93,91,84,83,37,200,185,179,0,0,0,0,0,0,0,0,25,21,0,0,0,0,0,0,0,0,0,0,0,0,0,0,0,0,0,0,0,0,0,0,0,0,0,0,0,0,0,0,0,0,0,0,0,0,0,0,0,0,0]} 1. e4 {[%emt 0:00:08]} c5 {[%emt 0:00:44]} 2. Nc3 {[%emt 0:00:15]} Nc6 {[%emt 0:00:08]} 3. Bb5 {[%emt 0:00:05]} Nd4 {[%emt 0:00:12]} 4. Nf3 {[%emt 0:00:05]} Nxb5 {[%emt 0:00:19]} 5. Nxb5 {[%emt 0:00:16]} d6 {[%emt 0:00:04]} 6. d4 {[%emt 0:00:06]} Nf6 {[%emt 0:01:37] B23: Closed Sicilian: Lines without g3.} 7. Qd3 {[%emt 0:00:54]} a6 {[%emt 0:01:05]} 8. Nc3 {[%emt 0:00:23] With the idea dxc5.} cxd4 {[%emt 0:03:31]} 9. Nxd4 {[%emt 0:00:58]} e5 {[%emt 0:16:29]} 10. Nf5 {[%emt 0:00:18]} Bxf5 {[%emt 0:16:53]} 11. exf5 {[%emt 0:00:07]} d5 {[%emt 0:02:31]} 12. Bg5 {[%emt 0:00:30]} (12. O-O $5 {[%cal Rf1e1]}) 12... d4 {[%emt 0:03:08]} 13. Bxf6 {[%emt 0:00:26]} Qxf6 {[%emt 0:12:19]} 14. Ne4 {[%emt 0:00:12]} Qc6 {[%emt 0:00:22]} 15. O-O {[%emt 0:00:56]} Rc8 {[%emt 0:05:22] [#]} (15... Be7 $11 {keeps the balance.}) 16. Rac1 $146 {[%emt 0:02:26]} (16. f4 $1 $16 {[%cal Rf4e5]}) ({Predecessor:} 16. c3 Rd8 17. Rfe1 dxc3 18. Qg3 f6 19. Nxc3 Qc7 20. Rac1 Qf7 21. f4 Bc5+ 22. Kh1 {1-0 (46) Barseghyan,A (2381)-Kuhar,L (2030) Corum 2019}) 16... g6 {[%emt 0:01:03]} (16... Be7 $11 {might be stronger.}) 17. f6 $14 {[%emt 0:04:13]} Bh6 {[%emt 0:13:41] Inhibits f4.} (17... Rd8 $142) 18. Rce1 $1 $16 {[%emt 0:01:01]} (18. Qa3 $6 Rc7 19. Rce1 Kd8 $14) 18... Qe6 {[%emt 0:02:17]} (18... Rc7 $16) 19. Qa3 {[%emt 0:01:26]} (19. Qg3 $18) 19... Bf8 {[%emt 0:02:16]} 20. Qg3 {[%emt 0:03:23]} (20. Qa5 $142) 20... Kd7 {[%emt 0:04:29]} 21. c3 {[%emt 0:02:00] And now cxd4 would win.} dxc3 {[%emt 0:01:08] [#]} 22. bxc3 {[%emt 0:03:49]} ({And not} 22. Ng5 Qxf6 23. f4 (23. Qxe5 $2 Qxe5 24. Rxe5 cxb2 $19) (23. bxc3 Kc7 $11) (23. Rxe5 Bd6 $11) 23... Be7 24. bxc3 (24. Rxe5 Qb6+ 25. Kh1 c2 $17) 24... exf4 25. Rxf4 Qxg5 $11) (22. Rc1 $1 $18 c2 23. Qd3+ Bd6 24. b4 (24. Rxc2 Rxc2 25. Qxc2 Rc8 $14)) 22... Kc7 {[%emt 0:02:59] [#]} (22... Rc6 $16 {was necessary.}) 23. Qf3 {[%emt 0:01:07]} (23. Rb1 $1 $18 {is more deadly.}) 23... h6 {[%emt 0:00:30]} (23... Qc4 $16) 24. Rb1 $18 {[%emt 0:00:38][%cal Ob1b7] Hoping for Rxb7+!} Qc6 {[%emt 0:00:45]} 25. Rfd1 {[%emt 0:02:39][%cal Oa2a4]} Rd8 {[%emt 0:01:42]} (25... b6 $142 26. c4 Bc5) 26. Rxd8 {[%emt 0:00:41]} Kxd8 {[%emt 0:00:01]} 27. Qd3+ {[%emt 0:00:30]} (27. c4 $18 {and White stays clearly on top.}) 27... Kc7 $16 {[%emt 0:00:20]} 28. Rd1 {[%emt 0:00:38][%csl Gd1][%cal Rd3d8] White is much more active.} Ba3 {[%emt 0:00:51]} 29. c4 {[%emt 0:00:43]} ({Better is} 29. f3 $16) 29... Bb4 $2 {[%emt 0:00:17]} (29... Bb2 $1 $14) 30. a3 {[%emt 0:00:33]} Ba5 {[%emt 0:00:15]} 31. Qd5 $2 {[%emt 0:01:39]} ({White should play} 31. Nd6 $18 Rf8 32. c5 (32. Nxf7 Qxf6 33. Qd5 Bb6 $11)) 31... Qxd5 $11 {[%emt 0:01:50]} 32. Rxd5 {[%emt 0:00:34]} Rd8 $1 {[%emt 0:02:29]} 33. Rxd8 {[%emt 0:01:03]} Kxd8 {[%emt 0:00:02][%mdl 4096] Endgame KB-KN} 34. Nd6 {[%emt 0:00:08][%csl LRb7,LRf7]} Kd7 {[%emt 0:00:25]} 35. Nxf7 {[%emt 0:00:07]} Ke6 {[%emt 0:00:45][%csl LRf6,LRf7] [#]} 36. Nxe5 {[%emt 0:00:13] aiming for f7. The position is equal.} Kxf6 {[%emt 0:01:01]} (36... Kxe5 $2 37. f7 $18) 37. Nd7+ {[%emt 0:00:08]} Ke7 {[%emt 0:00:19]} 38. Nc5 {[%emt 0:00:24]} b5 {[%emt 0:00:21]} 39. cxb5 {[%emt 0:00:45]} ({Much worse is} 39. Nxa6 bxc4 40. Kf1 c3 $17) 39... axb5 {[%emt 0:00:02]} 40. Nb3 {[%emt 0:00:45]} Bc3 {[%emt 0:00:17]} 41. Kf1 {[%emt 0:00:59]} Bb2 {[%emt 0:00:13]} 42. Ke2 {[%emt 0:00:12]} Kd6 {[%emt 0:01:03]} 43. Kd3 {[%emt 0:00:34]} Kd5 {[%emt 0:00:17]} 44. f4 {[%emt 0:07:31]} Bxa3 {[%emt 0:00:08]} 45. Nd4 {[%emt 0:00:19]} b4 {[%emt 0:00:18]} 46. Nc2 {[%emt 0:00:59]} Kc5 {[%emt 0:00:40]} 47. Nd4 {[%emt 0:01:15]} Bb2 {[%emt 0:01:06]} 48. Ne6+ {[%emt 0:00:59]} Kd5 {[%emt 0:00:31]} 49. Nf8 {[%emt 0:00:47]} g5 {[%emt 0:02:43]} 50. fxg5 {[%emt 0:01:55]} hxg5 {[%emt 0:00:03]} 51. Nh7 {[%emt 0:00:28]} g4 {[%emt 0:00:47]} 52. Kc2 {[%emt 0:01:24]} Be5 {[%emt 0:00:39]} 53. Kb3 {[%emt 0:00:16]} Ke4 {[%emt 0:01:11]} 54. Ng5+ {[%emt 0:00:53]} Kf5 {[%emt 0:01:11]} 55. Nf7 {[%emt 0:01:14]} Bxh2 {[%emt 0:00:27] Threatens to win with ...Kg6.} 56. Nh6+ {[%emt 0:00:11] Weighted Error Value: White=0.25 (precise) /Black=0.25 (precise)} 1/2-1/2

[Event "11th Festival Palmanova-A 2022"]
[Site "Strassoldo"]
[Date "2022.12.09"]
[Round "3.7"]
[White "Pozzari, Simone"]
[Black "Savanovic, Aleksandar"]
[Result "1-0"]
[ECO "E05"]
[WhiteElo "2139"]
[BlackElo "2365"]
[Annotator "TA"]
[PlyCount "95"]
[EventDate "2022.12.08"]
[EventType "swiss"]
[EventCountry "ITA"]
[SourceTitle "playchess.com"]
[Source "ChessBase"]
[SourceQuality "1"]
[TimeControl "5400+30"]

{[%evp 20,95,0,0,0,0,21,30,21,0,0,0,0,7,0,0,4,0,0,0,0,0,10,5,10,4,17,37,62,64,54,43,60,64,72,51,85,58,83,46,104,103,92,109,153,153,157,160,160,157,158,157,171,147,339,339,328,273,484,466,477,475,829,808,718,732,910,895,739,720,6211,6424,29973,29974,29980,29981,29988,29989]} 1. d4 {[%emt 0:00:35] Vidit,Santosh Gujrathi} Nf6 {[%emt 0:00:24]} 2. c4 {[%emt 0:00:17]} e6 {[%emt 0:00:06]} 3. g3 {[%emt 0:00:28]} d5 {[%emt 0:00:13]} 4. Bg2 {[%emt 0:00:14]} Be7 {[%emt 0:00:06]} 5. Nf3 {[%emt 0:00:05]} O-O {[%emt 0:00:04]} 6. O-O {[%emt 0:00:05]} dxc4 {[%emt 0:00:13]} 7. Qc2 {[%emt 0:00:08]} a6 {[%emt 0:00:08]} 8. Qxc4 {[%emt 0:00:07]} b5 {[%emt 0:00:04]} 9. Qc2 {[%emt 0:00:06]} Bb7 {[%emt 0:00:03]} 10. Bd2 {[%emt 0:00:07]} Be4 {[%emt 0:01:06][%cal Bb7e4,Be4g6,Bg6h5][%mdl 32]} 11. Qc1 {[%emt 0:00:06]} c6 {[%emt 0:00:05] E05: Open Catalan: 5 Nf3 Be7.} 12. a4 {[%emt 0:00:15]} Nbd7 {[%emt 0:02:45]} 13. Nc3 {[%emt 0:00:10]} Bg6 {[%emt 0:00:20] White has an edge.} 14. Nh4 {[%emt 0:00:09]} Bh5 {[%emt 0:02:32]} 15. h3 {[%emt 0:03:15]} Nd5 {[%emt 0:01:23] Prevents g4.} 16. axb5 {[%emt 0:00:45]} axb5 {[%emt 0:04:20]} 17. Nxd5 {[%emt 0:00:13]} cxd5 {[%emt 0:00:14]} 18. Bf3 {[%emt 0:00:06]} Bxf3 {[%emt 0:10:03]} 19. Nxf3 {[%emt 0:00:06]} Qb6 {[%emt 0:01:34]} 20. Qc2 {[%emt 0:00:08] [#]} Qb7 $146 {[%emt 0:40:14]} ({Predecessor:} 20... Rac8 21. Qd3 Ra8 22. Rxa8 Rxa8 23. Rc1 h6 24. Bf4 g5 25. Ne5 Nxe5 26. Bxe5 b4 {1-0 (46) Vidit,S (2707)-Wang,H (2737) Danzhou 2019 CBM 191 [Vidit,Santosh Gujrathi]}) 21. Rfc1 {[%emt 0:07:23]} Rxa1 {[%emt 0:06:13]} 22. Rxa1 {[%emt 0:00:06]} Rc8 {[%emt 0:00:04]} 23. Qb3 {[%emt 0:01:30]} f6 {[%emt 0:04:58]} 24. Bb4 {[%emt 0:05:35] White is more active.} Bd8 {[%emt 0:05:37]} 25. Qa3 {[%emt 0:06:32]} Kf7 {[%emt 0:00:19]} 26. e3 {[%emt 0:25:16]} Rc6 {[%emt 0:10:59]} 27. Kg2 {[%emt 0:02:57]} h6 {[%emt 0:01:11]} 28. Ne1 {[%emt 0:10:17][%cal Bf3e1,Be1d3,Bd3e5][%mdl 32]} Bb6 {[%emt 0:04:51]} 29. Nd3 {[%emt 0:02:22]} Rc4 {[%emt 0:00:34]} (29... e5 $14) 30. Qa6 $16 {[%emt 0:08:32]} Qxa6 {[%emt 0:00:09]} 31. Rxa6 {[%emt 0:00:05]} e5 {[%emt 0:02:44] [#]} 32. dxe5 {[%emt 0:07:30]} fxe5 {[%emt 0:02:10] [#]} 33. Rxb6 $1 {[%emt 0:00:47][%mdl 512]} Nxb6 {[%emt 0:00:01]} 34. Nxe5+ {[%emt 0:00:08]} Ke6 {[%emt 0:00:12]} 35. Nxc4 {[%emt 0:00:04]} dxc4 {[%emt 0:00:23][%mdl 4096] Endgame KB-KN} 36. Bc3 {[%emt 0:01:29][%cal Oe3e4]} Nd5 $2 {[%emt 0:00:34] This costs Black the game.} (36... g5 $16 37. f4 Nd5) 37. Bxg7 $18 {[%emt 0:00:27]} b4 {[%emt 0:00:05]} 38. Bd4 {[%emt 0:03:20]} ({Not} 38. Bxh6 c3 39. b3 c2 $11) 38... Nc7 $2 {[%emt 0:01:37]} (38... c3 39. bxc3 b3) 39. Kf3 {[%emt 0:01:22]} Nb5 {[%emt 0:00:12] Strongly threatening ...Nxd4+.} 40. Ke2 {[%emt 0:01:49]} b3 {[%emt 0:00:51]} (40... Nd6 $142 41. g4 Kf7) 41. Kd2 {[%emt 0:00:34]} Kd5 {[%emt 0:00:11]} 42. g4 {[%emt 0:02:37][%cal Bg3g4,Bg4g5,Bg5g6][%mdl 32]} Ke4 {[%emt 0:00:09]} 43. Bg7 {[%emt 0:02:45]} Kf3 {[%emt 0:00:06]} 44. Bxh6 {[%emt 0:00:27]} Kxf2 {[%emt 0:01:38]} 45. Bf4 {[%emt 0:00:53] White wants to mate with g5.} Kf3 {[%emt 0:00:31]} 46. g5 {[%emt 0:02:36] White mates.} c3+ {[%emt 0:00:43]} 47. Kc1 {[%emt 0:01:52]} c2 {[%emt 0:00:20]} 48. g6 {[%emt 0:00:18] Weighted Error Value: White=0.05 (flawless) /Black=0.49} 1-0